[Event "European Womens-ch 2025"]
[Site "Rhodes"]
[Date "2025.04.03"]
[Round "4.23"]
[White "Gaponenko, Inna"]
[Black "Huseynova, Lala"]
[Result "1-0"]
[Annotator "RC"]
[ECO "B55"]
[WhiteElo "2349"]
[BlackElo "2065"]
[PlyCount "89"]
[EventDate "2025.03.29"]
[EventType "swiss"]
[EventCountry "GRE"]
[SourceTitle "playchess.com"]
[Source "ChessBase"]
[SourceQuality "1"]
[TimeControl "40/5400+30:1800+30"]

1. e4 {[%emt 0:00:03]} c5 {[%emt 0:00:03]} 2. Nf3 {[%emt 0:00:06]} d6 {[%emt 0:00:03]} 3. d4 {[%emt 0:00:05]} cxd4 {[%emt 0:00:04]} 4. Nxd4 {[%emt 0:00:05]} Nf6 {[%emt 0:00:03]} 5. f3 {[%emt 0:00:06]} e5 {[%emt 0:00:22]} 6. Nb3 {[%emt 0:00:06]} Be6 {[%emt 0:04:58]} 7. c4 {[%emt 0:00:19]} Be7 {[%emt 0:06:00]} 8. Be3 {[%emt 0:04:11]} O-O {[%emt 0:07:52]} 9. Nc3 {[%emt 0:00:26]} Na6 {[%emt 0:03:22]} 10. Be2 {[%emt 0:11:10]} Rc8 {[%emt 0:07:21]} 11. Nd5 {[%emt 0:16:23]} Nxd5 {[%emt 0:06:12]} 12. cxd5 {[%emt 0:05:48]} Bd7 {[%emt 0:02:59]} 13. Qd2 {[%emt 0:13:22]} f5 {[%emt 0:02:55]} 14. O-O {[%emt 0:01:14]} h6 {[%emt 0:19:11]} 15. Na5 {[%emt 0:10:53]} Qc7 {[%emt 0:10:38]} 16. Rac1 {[%emt 0:26:51]} Qb8 {[%emt 0:01:40]} 17. Rxc8 {[%emt 0:00:31]} Rxc8 {[%emt 0:02:07]} 18. Bxa6 {[%emt 0:00:10]} bxa6 {[%emt 0:00:10]} 19. Nc6 {[%emt 0:00:10]} Bxc6 {[%emt 0:00:31]} 20. dxc6 {[%emt 0:00:01]} Kh8 {[%emt 0:07:22]} 21. Rc1 {[%emt 0:02:07]} Qb5 {[%emt 0:02:52]} 22. Qd5 {[%emt 0:05:07]} Qxb2 {[%emt 0:03:53]} 23. exf5 {[%emt 0:00:55]} Bg5 {[%emt 0:02:25]} 24. Bxg5 {[%emt 0:00:11]} hxg5 {[%emt 0:00:01]} 25. Qc4 {[%emt 0:00:18]} d5 {[%emt 0:02:56]} 26. Qc3 {[%emt 0:02:00]} Qe2 {[%emt 0:02:13]} 27. Re1 {[%emt 0:00:47]} d4 {[%emt 0:02:45]} 28. Qb4 {[%emt 0:00:29]} Qc2 {[%emt 0:00:54]} 29. Rxe5 {[%emt 0:00:06]} d3 {[%emt 0:01:23]} 30. Rd5 {[%emt 0:00:39]} Re8 {[%emt 0:01:32]} 31. h4 {[%emt 0:00:42]} Qxc6 {[%emt 0:00:39]} 32. Rxd3 {[%emt 0:00:08]} Qc1+ {[%emt 0:00:14]} 33. Kh2 {[%emt 0:00:05]} Re1 {[%emt 0:00:26]} 34. hxg5 {[%emt 0:01:18]} Rh1+ {[%emt 0:00:23]} 35. Kg3 {[%emt 0:00:03]} Qxg5+ {[%emt 0:00:04]} 36. Qg4 {[%emt 0:00:31]} Qe7 {[%emt 0:00:30]} 37. Qe4 {[%emt 0:00:07]} Qc7+ {[%emt 0:00:40]} 38. Qf4 {[%emt 0:00:54]} Qe7 {[%emt 0:00:25]} 39. Re3 {[%emt 0:00:23]} Qf6 {[%emt 0:01:13]} 40. Re6 {[%emt 0:00:00]} Qc3 {[%emt 0:00:00]} 41. Re8+ {[%emt 0:01:32]} Kh7 {[%emt 0:00:38]} 42. Qb8 {[%emt 0:00:30]} g6 {[%emt 0:04:22]} 43. Re7+ {[%emt 0:01:50]} Kh6 {[%emt 0:00:09]} 44. Qf4+ {[%emt 0:00:09]} g5 {[%emt 0:00:08]} 45. Qd6+ {[%emt 0:00:04]} 1-0

[Event "European Womens-ch 2025"]
[Site "Rhodes"]
[Date "2025.04.03"]
[Round "4.24"]
[White "Karacsonyi, Kata"]
[Black "Mammadova, Gulnar"]
[Result "0-1"]
[Annotator "RC"]
[ECO "C50"]
[WhiteElo "2198"]
[BlackElo "2342"]
[PlyCount "80"]
[EventDate "2025.03.29"]
[EventType "swiss"]
[EventCountry "GRE"]
[SourceTitle "playchess.com"]
[Source "ChessBase"]
[SourceQuality "1"]
[TimeControl "40/5400+30:1800+30"]

1. e4 {[%emt 0:01:02]} e5 {[%emt 0:00:02]} 2. Nf3 {[%emt 0:00:10]} Nc6 {[%emt 0:00:06]} 3. Bc4 {[%emt 0:00:13]} Nf6 {[%emt 0:00:10]} 4. d3 {[%emt 0:00:08]} Bc5 {[%emt 0:00:21]} 5. Bg5 {[%emt 0:00:20]} h6 {[%emt 0:00:31]} 6. Bh4 {[%emt 0:00:08]} Be7 {[%emt 0:04:25]} 7. a4 {[%emt 0:12:33]} d6 {[%emt 0:00:34]} 8. c3 {[%emt 0:08:19]} Nh5 {[%emt 0:04:13]} 9. Bg3 {[%emt 0:09:13]} Nxg3 {[%emt 0:01:19]} 10. fxg3 {[%emt 0:02:02]} Be6 {[%emt 0:04:34]} 11. Bd5 {[%emt 0:05:54]} O-O {[%emt 0:02:47]} 12. O-O {[%emt 0:09:43]} Bxd5 {[%emt 0:02:16]} 13. exd5 {[%emt 0:00:07]} Nb8 {[%emt 0:00:06]} 14. g4 {[%emt 0:08:26]} c6 {[%emt 0:03:10]} 15. Qb3 {[%emt 0:39:42]} Nd7 {[%emt 0:05:45]} 16. d4 {[%emt 0:00:00]} e4 {[%emt 0:04:14]} 17. Nfd2 {[%emt 0:00:00]} Nf6 {[%emt 0:01:12]} 18. c4 {[%emt 0:00:00]} cxd5 {[%emt 0:06:19]} 19. cxd5 {[%emt 0:00:00]} Nxg4 {[%emt 0:06:21]} 20. Nxe4 {[%emt 0:00:00]} f5 {[%emt 0:00:35]} 21. Nf2 {[%emt 0:00:00]} Bf6 {[%emt 0:01:50]} 22. Nxg4 {[%emt 0:00:00]} fxg4 {[%emt 0:00:23]} 23. Nd2 {[%emt 0:00:00]} Bxd4+ {[%emt 0:03:04]} 24. Kh1 {[%emt 0:00:00]} Qb6 {[%emt 0:04:35]} 25. Qxb6 {[%emt 0:00:00]} axb6 {[%emt 0:02:40]} 26. Nc4 {[%emt 0:00:00]} Bc5 {[%emt 0:02:00]} 27. b3 {[%emt 0:00:38]} Rae8 {[%emt 0:02:02]} 28. g3 {[%emt 0:01:16]} Re2 {[%emt 0:02:58]} 29. Rxf8+ {[%emt 0:00:25]} Kxf8 {[%emt 0:00:03]} 30. Rb1 {[%emt 0:01:16]} Ke7 {[%emt 0:06:46]} 31. b4 {[%emt 0:00:05]} Bf2 {[%emt 0:01:37]} 32. a5 {[%emt 0:02:59]} b5 {[%emt 0:03:23]} 33. Na3 {[%emt 0:01:41]} Re1+ {[%emt 0:00:49]} 34. Rxe1+ {[%emt 0:00:07]} Bxe1 {[%emt 0:00:02]} 35. Nc2 {[%emt 0:00:57]} Bc3 {[%emt 0:00:17]} 36. Kg2 {[%emt 0:00:23]} Kf6 {[%emt 0:00:06]} 37. Na3 {[%emt 0:00:31]} Bxb4 {[%emt 0:00:52]} 38. Nxb5 {[%emt 0:00:08]} Ke5 {[%emt 0:00:26]} 39. h3 {[%emt 0:00:59]} gxh3+ {[%emt 0:00:23]} 40. Kxh3 {[%emt 0:00:00]} Bxa5 {[%emt 0:00:00]} 0-1

[Event "European Womens-ch 2025"]
[Site "Rhodes"]
[Date "2025.04.03"]
[Round "4.25"]
[White "Zhukova, Natalia"]
[Black "Korenova, Martina"]
[Result "1-0"]
[Annotator "RC"]
[ECO "A84"]
[WhiteElo "2306"]
[BlackElo "2045"]
[PlyCount "67"]
[EventDate "2025.03.29"]
[EventType "swiss"]
[EventCountry "GRE"]
[SourceTitle "playchess.com"]
[Source "ChessBase"]
[SourceQuality "1"]
[TimeControl "40/5400+30:1800+30"]

1. d4 {[%emt 0:01:48]} f5 {[%emt 0:00:11]} 2. Nf3 {[%emt 0:02:10]} Nf6 {[%emt 0:01:18]} 3. c4 {[%emt 0:00:37]} g6 {[%emt 0:00:26]} 4. e3 {[%emt 0:04:09]} Bg7 {[%emt 0:00:17]} 5. Be2 {[%emt 0:00:33]} O-O {[%emt 0:00:27]} 6. b4 {[%emt 0:00:51]} Ne4 {[%emt 0:12:39]} 7. Bb2 {[%emt 0:00:24]} b6 {[%emt 0:00:28]} 8. Nbd2 {[%emt 0:05:28]} Bb7 {[%emt 0:01:07]} 9. h4 {[%emt 0:02:25]} h6 {[%emt 0:13:21]} 10. Nxe4 {[%emt 0:04:07]} fxe4 {[%emt 0:10:20]} 11. Ne5 {[%emt 0:02:24]} Qe8 {[%emt 0:05:41]} 12. h5 {[%emt 0:00:46]} g5 {[%emt 0:00:08]} 13. Bg4 {[%emt 0:05:56]} e6 {[%emt 0:05:02]} 14. b5 {[%emt 0:13:26]} d6 {[%emt 0:05:23]} 15. Ng6 {[%emt 0:01:15]} Rf7 {[%emt 0:00:05]} 16. O-O {[%emt 0:02:55]} Nd7 {[%emt 0:01:09]} 17. a4 {[%emt 0:02:58]} a6 {[%emt 0:02:51]} 18. Qe2 {[%emt 0:02:13]} Nf8 {[%emt 0:03:33]} 19. c5 {[%emt 0:16:00]} bxc5 {[%emt 0:08:17]} 20. dxc5 {[%emt 0:01:07]} axb5 {[%emt 0:06:07]} 21. axb5 {[%emt 0:00:24]} Bd5 {[%emt 0:00:18]} 22. Nxf8 {[%emt 0:08:37]} Rxf8 {[%emt 0:02:30]} 23. Bxg7 {[%emt 0:02:36]} Kxg7 {[%emt 0:00:03]} 24. c6 {[%emt 0:00:13]} Rxa1 {[%emt 0:00:49]} 25. Rxa1 {[%emt 0:00:02]} Qb8 {[%emt 0:02:48]} 26. Ra6 {[%emt 0:00:45]} Qd8 {[%emt 0:03:58]} 27. Ra7 {[%emt 0:00:47]} Rf7 {[%emt 0:01:21]} 28. Qc2 {[%emt 0:04:15]} Qb8 {[%emt 0:01:01]} 29. Qc3+ {[%emt 0:04:02]} Kh7 {[%emt 0:02:52]} 30. Qa5 {[%emt 0:02:34]} Qd8 {[%emt 0:01:50]} 31. Qc3 {[%emt 0:04:14]} Qh8 {[%emt 0:04:51]} 32. Qxh8+ {[%emt 0:00:55]} Kxh8 {[%emt 0:00:04]} 33. b6 {[%emt 0:00:26]} Bxc6 {[%emt 0:00:04]} 34. Bxe6 {[%emt 0:00:50]} 1-0

[Event "European Womens-ch 2025"]
[Site "Rhodes"]
[Date "2025.04.03"]
[Round "4.26"]
[White "Kochavi, Dana"]
[Black "Hapala, Elisabeth"]
[Result "1-0"]
[Annotator "RC"]
[ECO "B48"]
[WhiteElo "2301"]
[BlackElo "2092"]
[PlyCount "73"]
[EventDate "2025.03.29"]
[EventType "swiss"]
[EventCountry "GRE"]
[SourceTitle "playchess.com"]
[Source "ChessBase"]
[SourceQuality "1"]
[TimeControl "40/5400+30:1800+30"]

1. e4 {[%emt 0:00:01]} c5 {[%emt 0:00:04]} 2. Nf3 {[%emt 0:00:03]} e6 {[%emt 0:00:03]} 3. d4 {[%emt 0:00:04]} cxd4 {[%emt 0:00:03]} 4. Nxd4 {[%emt 0:00:06]} Nc6 {[%emt 0:00:09]} 5. Nc3 {[%emt 0:00:10]} Qc7 {[%emt 0:00:04]} 6. Be3 {[%emt 0:00:03]} a6 {[%emt 0:00:04]} 7. Bd3 {[%emt 0:00:06]} Nf6 {[%emt 0:00:12]} 8. Qe2 {[%emt 0:00:03]} b5 {[%emt 0:00:18]} 9. Nxc6 {[%emt 0:00:54]} dxc6 {[%emt 0:00:16]} 10. a4 {[%emt 0:00:05]} Bb7 {[%emt 0:00:05]} 11. O-O {[%emt 0:17:52]} Bd6 {[%emt 0:01:13]} 12. f4 {[%emt 0:00:13]} e5 {[%emt 0:00:15]} 13. f5 {[%emt 0:01:08]} O-O {[%emt 0:00:39]} 14. Rad1 {[%emt 0:07:43]} Rfd8 {[%emt 0:10:01]} 15. Bg5 {[%emt 0:17:25]} Be7 {[%emt 0:00:33]} 16. Rf3 {[%emt 0:00:48]} Rd4 {[%emt 0:18:30]} 17. Be3 {[%emt 0:07:50]} Rd7 {[%emt 0:02:52]} 18. Rg3 {[%emt 0:01:25]} Rad8 {[%emt 0:26:32]} 19. Rf1 {[%emt 0:04:52]} Rc8 {[%emt 0:07:10]} 20. Bh6 {[%emt 0:08:55]} g6 {[%emt 0:14:11]} 21. fxg6 {[%emt 0:01:31]} fxg6 {[%emt 0:00:02]} 22. Rgf3 {[%emt 0:03:00]} Nh5 {[%emt 0:01:09]} 23. g3 {[%emt 0:11:16]} Bc5+ {[%emt 0:00:19]} 24. Kh1 {[%emt 0:00:19]} Re8 {[%emt 0:11:11]} 25. Bc4+ {[%emt 0:05:26]} Kh8 {[%emt 0:00:04]} 26. Bf7 {[%emt 0:00:38]} Rb8 {[%emt 0:02:48]} 27. Be6 {[%emt 0:00:11]} Rdd8 {[%emt 0:03:45]} 28. Rf7 {[%emt 0:02:33]} Qd6 {[%emt 0:00:03]} 29. Bb3 {[%emt 0:00:33]} bxa4 {[%emt 0:01:41]} 30. Nxa4 {[%emt 0:00:14]} Bc8 {[%emt 0:00:41]} 31. Rf8+ {[%emt 0:01:13]} Rxf8 {[%emt 0:00:04]} 32. Bxf8 {[%emt 0:00:08]} Qxf8 {[%emt 0:00:18]} 33. Rxf8+ {[%emt 0:00:04]} Bxf8 {[%emt 0:00:01]} 34. Qc4 {[%emt 0:00:51]} Nf6 {[%emt 0:00:14]} 35. Qf7 {[%emt 0:00:21]} Bg7 {[%emt 0:00:07]} 36. Qc7 {[%emt 0:00:04]} Nd7 {[%emt 0:00:50]} 37. Nc5 {[%emt 0:00:31]} 1-0

[Event "European Womens-ch 2025"]
[Site "Rhodes"]
[Date "2025.04.03"]
[Round "4.27"]
[White "Golsta, Madara"]
[Black "Heinemann, Josefine"]
[Result "0-1"]
[Annotator "RC"]
[ECO "E51"]
[WhiteElo "1979"]
[BlackElo "2297"]
[PlyCount "92"]
[EventDate "2025.03.29"]
[EventType "swiss"]
[EventCountry "GRE"]
[SourceTitle "playchess.com"]
[Source "ChessBase"]
[SourceQuality "1"]
[TimeControl "40/5400+30:1800+30"]

1. d4 {[%emt 0:00:04]} Nf6 {[%emt 0:00:45]} 2. c4 {[%emt 0:00:10]} e6 {[%emt 0:00:10]} 3. Nc3 {[%emt 0:00:27]} Bb4 {[%emt 0:00:50]} 4. e3 {[%emt 0:01:45]} O-O {[%emt 0:00:53]} 5. Bd2 {[%emt 0:00:33]} d5 {[%emt 0:03:33]} 6. Nf3 {[%emt 0:01:22]} b6 {[%emt 0:01:25]} 7. cxd5 {[%emt 0:01:39]} exd5 {[%emt 0:00:05]} 8. Bd3 {[%emt 0:03:22]} Bd6 {[%emt 0:03:22]} 9. Rc1 {[%emt 0:02:46]} c5 {[%emt 0:01:06]} 10. O-O {[%emt 0:03:42]} Bb7 {[%emt 0:04:37]} 11. Ne5 {[%emt 0:07:25]} Nc6 {[%emt 0:04:43]} 12. f4 {[%emt 0:15:37]} cxd4 {[%emt 0:06:34]} 13. Nxc6 {[%emt 0:01:07]} Bxc6 {[%emt 0:00:04]} 14. exd4 {[%emt 0:00:10]} Qd7 {[%emt 0:05:12]} 15. f5 {[%emt 0:07:11]} Ne4 {[%emt 0:07:11]} 16. f6 {[%emt 0:04:11]} g6 {[%emt 0:04:03]} 17. Bh6 {[%emt 0:05:02]} Rfe8 {[%emt 0:02:43]} 18. Qf3 {[%emt 0:20:56]} Re6 {[%emt 0:18:43]} 19. Bxe4 {[%emt 0:05:55]} dxe4 {[%emt 0:00:06]} 20. Qh3 {[%emt 0:00:07]} Ree8 {[%emt 0:05:55]} 21. Qh4 {[%emt 0:03:50]} Bb4 {[%emt 0:04:20]} 22. d5 {[%emt 0:03:49]} Bb7 {[%emt 0:01:32]} 23. a3 {[%emt 0:06:20]} Bc5+ {[%emt 0:01:03]} 24. Kh1 {[%emt 0:00:07]} Re5 {[%emt 0:00:37]} 25. Bf4 {[%emt 0:02:28]} Rh5 {[%emt 0:00:40]} 26. Qg3 {[%emt 0:00:06]} Bxd5 {[%emt 0:02:36]} 27. Rfd1 {[%emt 0:01:43]} Qe6 {[%emt 0:02:23]} 28. Nb5 {[%emt 0:01:52]} Rd8 {[%emt 0:00:21]} 29. b4 {[%emt 0:00:26]} Bf8 {[%emt 0:00:11]} 30. Bg5 {[%emt 0:00:21]} Qf5 {[%emt 0:04:58]} 31. h4 {[%emt 0:00:40]} h6 {[%emt 0:00:44]} 32. Be3 {[%emt 0:00:38]} Qxf6 {[%emt 0:00:32]} 33. Nxa7 {[%emt 0:00:24]} Rxh4+ {[%emt 0:01:15]} 34. Kg1 {[%emt 0:00:04]} Bd6 {[%emt 0:01:03]} 35. Qf2 {[%emt 0:01:01]} Bh2+ {[%emt 0:01:08]} 36. Kf1 {[%emt 0:00:22]} Bc4+ {[%emt 0:02:11]} 37. Rxc4 {[%emt 0:00:10]} Rxd1+ {[%emt 0:00:05]} 38. Ke2 {[%emt 0:00:03]} Qxf2+ {[%emt 0:01:33]} 39. Bxf2 {[%emt 0:00:07]} Rf4 {[%emt 0:00:07]} 40. Kxd1 {[%emt 0:00:00]} Rxf2 {[%emt 0:00:00]} 41. Rxe4 {[%emt 0:03:27]} Rxg2 {[%emt 0:00:47]} 42. Nc8 {[%emt 0:07:00]} Ra2 {[%emt 0:02:59]} 43. Rh4 {[%emt 0:05:19]} Bg1 {[%emt 0:02:17]} 44. Rxh6 {[%emt 0:00:49]} Rxa3 {[%emt 0:00:10]} 45. Kc2 {[%emt 0:01:02]} Kg7 {[%emt 0:00:29]} 46. Rh1 {[%emt 0:00:08]} Rg3 {[%emt 0:00:49]} 0-1

[Event "European Womens-ch 2025"]
[Site "Rhodes"]
[Date "2025.04.03"]
[Round "4.28"]
[White "Rida, Ruqayyah"]
[Black "Yao, Lan"]
[Result "1/2-1/2"]
[Annotator "RC"]
[ECO "B90"]
[WhiteElo "2065"]
[BlackElo "2294"]
[PlyCount "217"]
[EventDate "2025.03.29"]
[EventType "swiss"]
[EventCountry "GRE"]
[SourceTitle "playchess.com"]
[Source "ChessBase"]
[SourceQuality "1"]
[TimeControl "40/5400+30:1800+30"]

1. e4 {[%emt 0:00:04]} c5 {[%emt 0:00:05]} 2. Nf3 {[%emt 0:00:12]} d6 {[%emt 0:00:04]} 3. d4 {[%emt 0:00:08]} cxd4 {[%emt 0:00:04]} 4. Nxd4 {[%emt 0:00:06]} Nf6 {[%emt 0:00:03]} 5. Nc3 {[%emt 0:00:17]} a6 {[%emt 0:00:02]} 6. f3 {[%emt 0:00:09]} e5 {[%emt 0:00:05]} 7. Nb3 {[%emt 0:00:18]} Be6 {[%emt 0:00:05]} 8. Be3 {[%emt 0:00:07]} h5 {[%emt 0:00:29]} 9. Qd2 {[%emt 0:01:03]} Nbd7 {[%emt 0:00:17]} 10. Nd5 {[%emt 0:01:07]} Bxd5 {[%emt 0:00:29]} 11. exd5 {[%emt 0:00:27]} g6 {[%emt 0:00:07]} 12. c4 {[%emt 0:02:28]} Bg7 {[%emt 0:02:11]} 13. Be2 {[%emt 0:02:27]} b6 {[%emt 0:01:22]} 14. O-O {[%emt 0:04:32]} O-O {[%emt 0:00:33]} 15. Rab1 {[%emt 0:06:17]} a5 {[%emt 0:07:04]} 16. Nc1 {[%emt 0:02:56]} Nh7 {[%emt 0:05:50]} 17. b3 {[%emt 0:06:07]} f5 {[%emt 0:03:27]} 18. Nd3 {[%emt 0:02:49]} h4 {[%emt 0:07:09]} 19. Qd1 {[%emt 0:06:23]} Bf6 {[%emt 0:28:41]} 20. a3 {[%emt 0:06:39]} Bg5 {[%emt 0:00:55]} 21. f4 {[%emt 0:01:10]} Bh6 {[%emt 0:00:29]} 22. Qd2 {[%emt 0:05:22]} g5 {[%emt 0:02:15]} 23. fxe5 {[%emt 0:04:15]} dxe5 {[%emt 0:00:05]} 24. Qc2 {[%emt 0:08:50]} Bg7 {[%emt 0:05:54]} 25. Rbd1 {[%emt 0:04:34]} g4 {[%emt 0:09:26]} 26. b4 {[%emt 0:04:12]} axb4 {[%emt 0:01:38]} 27. axb4 {[%emt 0:00:28]} Ng5 {[%emt 0:04:05]} 28. Ne1 {[%emt 0:03:59]} e4 {[%emt 0:08:17]} 29. c5 {[%emt 0:03:58]} bxc5 {[%emt 0:00:15]} 30. bxc5 {[%emt 0:00:11]} h3 {[%emt 0:01:18]} 31. Qd2 {[%emt 0:06:59]} hxg2 {[%emt 0:00:26]} 32. Nxg2 {[%emt 0:00:29]} Nh3+ {[%emt 0:05:07]} 33. Kh1 {[%emt 0:00:50]} Ne5 {[%emt 0:00:11]} 34. d6 {[%emt 0:01:01]} Qd7 {[%emt 0:01:30]} 35. Qd5+ {[%emt 0:01:18]} Kh7 {[%emt 0:02:05]} 36. Rb1 {[%emt 0:02:22]} Qf7 {[%emt 0:04:14]} 37. Qxf7 {[%emt 0:01:03]} Rxf7 {[%emt 0:00:01]} 38. Bd4 {[%emt 0:00:43]} f4 {[%emt 0:01:52]} 39. Bxe5 {[%emt 0:03:14]} Bxe5 {[%emt 0:00:56]} 40. Bxg4 {[%emt 0:00:00]} Ng5 {[%emt 0:00:00]} 41. h4 {[%emt 0:03:07]} Kg6 {[%emt 0:03:17]} 42. d7 {[%emt 0:15:43]} Nf3 {[%emt 0:05:12]} 43. Rbd1 {[%emt 0:02:20]} Rd8 {[%emt 0:05:26]} 44. c6 {[%emt 0:00:31]} Bc7 {[%emt 0:01:24]} 45. Bxf3 {[%emt 0:00:52]} exf3 {[%emt 0:00:04]} 46. Rxf3 {[%emt 0:00:02]} Rf6 {[%emt 0:00:26]} 47. Rc1 {[%emt 0:01:11]} Ra8 {[%emt 0:02:29]} 48. Rc5 {[%emt 0:03:34]} Ra1+ {[%emt 0:07:05]} 49. Kh2 {[%emt 0:00:07]} Rd1 {[%emt 0:02:29]} 50. h5+ {[%emt 0:00:44]} Kf7 {[%emt 0:02:28]} 51. Nh4 {[%emt 0:02:14]} Rdd6 {[%emt 0:00:44]} 52. Ng6 {[%emt 0:00:22]} Kg7 {[%emt 0:01:12]} 53. Ne7 {[%emt 0:00:48]} Kf7 {[%emt 0:02:05]} 54. Nd5 {[%emt 0:00:26]} Rf5 {[%emt 0:00:11]} 55. Nxc7 {[%emt 0:01:42]} Rxc5 {[%emt 0:00:11]} 56. Rxf4+ {[%emt 0:00:09]} Kg8 {[%emt 0:01:22]} 57. Ne6 {[%emt 0:00:26]} Rcxc6 {[%emt 0:01:21]} 58. Rg4+ {[%emt 0:02:06]} Kh7 {[%emt 0:00:42]} 59. d8=Q {[%emt 0:01:26]} Rxd8 {[%emt 0:00:01]} 60. Nxd8 {[%emt 0:00:11]} Rc5 {[%emt 0:00:12]} 61. Rh4 {[%emt 0:00:39]} Rf5 {[%emt 0:01:24]} 62. Kg3 {[%emt 0:00:47]} Kh6 {[%emt 0:00:16]} 63. Kg4 {[%emt 0:00:24]} Rg5+ {[%emt 0:00:29]} 64. Kf4 {[%emt 0:01:38]} Rxh5 {[%emt 0:00:07]} 65. Nf7+ {[%emt 0:00:07]} Kg6 {[%emt 0:00:02]} 66. Ne5+ {[%emt 0:00:08]} Kh6 {[%emt 0:00:03]} 67. Rg4 {[%emt 0:00:18]} Kh7 {[%emt 0:00:22]} 68. Rg1 {[%emt 0:02:33]} Rh2 {[%emt 0:00:27]} 69. Ng4 {[%emt 0:00:22]} Ra2 {[%emt 0:00:31]} 70. Nf6+ {[%emt 0:02:00]} Kh6 {[%emt 0:00:05]} 71. Ng8+ {[%emt 0:00:09]} Kh7 {[%emt 0:00:09]} 72. Ne7 {[%emt 0:00:08]} Rf2+ {[%emt 0:02:30]} 73. Ke5 {[%emt 0:00:16]} Ra2 {[%emt 0:01:57]} 74. Kf6 {[%emt 0:00:19]} Ra6+ {[%emt 0:00:23]} 75. Kf7 {[%emt 0:00:31]} Kh6 {[%emt 0:00:42]} 76. Ng8+ {[%emt 0:01:02]} Kh5 {[%emt 0:00:05]} 77. Nf6+ {[%emt 0:00:06]} Kh4 {[%emt 0:00:04]} 78. Kg6 {[%emt 0:00:14]} Ra5 {[%emt 0:01:34]} 79. Ne4 {[%emt 0:01:10]} Ra6+ {[%emt 0:00:38]} 80. Kf5 {[%emt 0:00:05]} Ra5+ {[%emt 0:00:27]} 81. Kf4 {[%emt 0:00:13]} Kh5 {[%emt 0:00:04]} 82. Rg8 {[%emt 0:00:25]} Kh6 {[%emt 0:00:24]} 83. Rg2 {[%emt 0:01:04]} Ra4 {[%emt 0:00:20]} 84. Kf5 {[%emt 0:00:31]} Ra5+ {[%emt 0:00:07]} 85. Ke6 {[%emt 0:00:08]} Ra6+ {[%emt 0:00:21]} 86. Nd6 {[%emt 0:00:07]} Kh5 {[%emt 0:00:30]} 87. Kf5 {[%emt 0:00:43]} Ra5+ {[%emt 0:00:03]} 88. Kf4 {[%emt 0:00:11]} Ra4+ {[%emt 0:00:06]} 89. Ne4 {[%emt 0:00:05]} Kh6 {[%emt 0:00:02]} 90. Rb2 {[%emt 0:00:14]} Kg6 {[%emt 0:00:14]} 91. Rb6+ {[%emt 0:00:08]} Kf7 {[%emt 0:00:06]} 92. Rb5 {[%emt 0:00:29]} Kg6 {[%emt 0:00:17]} 93. Ke5 {[%emt 0:00:30]} Ra1 {[%emt 0:00:20]} 94. Rb6+ {[%emt 0:00:11]} Kg7 {[%emt 0:00:15]} 95. Ng3 {[%emt 0:00:28]} Ra5+ {[%emt 0:00:24]} 96. Kf4 {[%emt 0:00:06]} Kf7 {[%emt 0:00:35]} 97. Ne4 {[%emt 0:00:21]} Ke7 {[%emt 0:00:56]} 98. Rh6 {[%emt 0:00:22]} Kf7 {[%emt 0:00:26]} 99. Nd6+ {[%emt 0:00:13]} Ke7 {[%emt 0:00:25]} 100. Nf5+ {[%emt 0:00:07]} Kd7 {[%emt 0:00:08]} 101. Kg5 {[%emt 0:00:08]} Ra1 {[%emt 0:00:28]} 102. Rd6+ {[%emt 0:00:16]} Kc7 {[%emt 0:00:03]} 103. Kf6 {[%emt 0:00:32]} Rf1 {[%emt 0:00:05]} 104. Ra6 {[%emt 0:00:05]} Kd7 {[%emt 0:00:20]} 105. Ke5 {[%emt 0:00:12]} Re1+ {[%emt 0:00:03]} 106. Kd5 {[%emt 0:00:05]} Rd1+ {[%emt 0:00:03]} 107. Nd4 {[%emt 0:00:05]} Ke7 {[%emt 0:00:06]} 108. Rh6 {[%emt 0:00:22]} Kf7 {[%emt 0:00:15]} 109. Ke5 1/2-1/2

[Event "European Womens-ch 2025"]
[Site "Rhodes"]
[Date "2025.04.03"]
[Round "4.29"]
[White "Zimina, Olga"]
[Black "Kosma, Maria"]
[Result "1-0"]
[Annotator "RC"]
[ECO "E05"]
[WhiteElo "2293"]
[BlackElo "1826"]
[PlyCount "43"]
[EventDate "2025.03.29"]
[EventType "swiss"]
[EventCountry "GRE"]
[SourceTitle "playchess.com"]
[Source "ChessBase"]
[SourceQuality "1"]
[TimeControl "40/5400+30:1800+30"]

1. Nf3 {[%emt 0:00:06]} d5 {[%emt 0:00:16]} 2. g3 {[%emt 0:00:10]} Nf6 {[%emt 0:00:22]} 3. Bg2 {[%emt 0:00:06]} e6 {[%emt 0:00:38]} 4. O-O {[%emt 0:00:08]} Be7 {[%emt 0:00:17]} 5. d4 {[%emt 0:00:14]} O-O {[%emt 0:00:56]} 6. c4 dxc4 {[%emt 0:00:38]} 7. Qc2 {[%emt 0:00:10]} a6 {[%emt 0:00:06]} 8. a4 {[%emt 0:00:16]} Bd7 {[%emt 0:00:25]} 9. Qxc4 {[%emt 0:00:11]} Bc6 {[%emt 0:00:09]} 10. Bg5 {[%emt 0:00:44]} Nbd7 {[%emt 0:01:15]} 11. Nc3 {[%emt 0:03:37]} h6 {[%emt 0:00:07]} 12. Bxf6 {[%emt 0:05:11]} Nxf6 {[%emt 0:00:45]} 13. Rfe1 {[%emt 0:01:55]} Qd6 {[%emt 0:13:14]} 14. e4 {[%emt 0:03:47]} Qb4 {[%emt 0:01:12]} 15. Qe2 {[%emt 0:05:29]} Rfe8 {[%emt 0:06:05]} 16. Red1 {[%emt 0:11:35]} b6 {[%emt 0:12:25]} 17. Qc2 {[%emt 0:14:36]} Bd7 {[%emt 0:10:08]} 18. d5 {[%emt 0:22:01]} exd5 {[%emt 0:26:34]} 19. e5 {[%emt 0:01:32]} Nh7 {[%emt 0:06:47]} 20. Rd4 {[%emt 0:00:44]} Qa5 {[%emt 0:01:00]} 21. Rxd5 {[%emt 0:00:38]} Bb5 {[%emt 0:00:48]} 22. Qc1 {[%emt 0:06:01]} 1-0